lending/lending_fUSD_20240131
["ID","MTS","AMOUNT","RATE_DAILY","PERIOD"]
[313096189,1706737860286,-356.65151244,0.00048495,24]
[313096190,1706737860295,-300.0,0.000485,46]
[313096191,1706737860305,-255.0,0.000485,2]
[313096192,1706737860315,-539.29698083,0.00048546,30]
[313096193,1706737860326,-151.67155283,0.00048588,30]
[313096194,1706737860336,-539.29698083,0.00048591,30]
[313096195,1706737860345,-309.18827163,0.00048615,30]
[313096196,1706737860355,-287.30811538,0.00048643,30]
[313096197,1706737860365,-222.22222222,0.00048657,30]
[313096198,1706737860374,-150.0,0.00048666,2]
[313096199,1706737860384,-1280.0,0.0004869,2]
[313096200,1706737860394,-867.0,0.0004869,2]
[313096201,1706737860403,-539.29698083,0.00048692,30]
[313096202,1706737860413,-287.30811538,0.00048699,30]
[313096203,1706737860423,-21770.19126701,0.000487,2]
[313096204,1706737860432,-222.22222222,0.00048711,30]
[313096205,1706737860442,-287.30811538,0.00048743,30]
[313096206,1706737860451,-773.98127364,0.00048743,30]
[313096207,1706737860461,-151.67155283,0.00048744,30]
[313096208,1706737860471,-685.42,0.00048767,2]
[313096209,1706737860480,-547.58,0.00048767,5]
[313096210,1706737860490,-500.0,0.00048767,5]
[313096211,1706737860500,-619.60784749,0.00048767,5]
[313096212,1706737860510,-842.96,0.00048767,5]
[313096213,1706737860520,-794.97,0.00048767,5]
[313096214,1706737860529,-500.0,0.00048767,5]
[313096215,1706737860539,-500.0,0.00048767,5]
[313096216,1706737860549,-288.15982418,0.00048767,5]
[313096217,1706737860560,-2136.82,0.00048767,5]
[313096218,1706737860573,-676.55,0.00048767,5]
[313096219,1706737860583,-569.16,0.00048767,5]
[313096220,1706737860592,-1100.98,0.00048767,5]
[313096221,1706737860603,-1246.27,0.00048767,5]
[313096222,1706737860613,-597.38,0.00048767,5]
[313096223,1706737860624,-811.79,0.00048767,5]
[313096224,1706737860635,-531.63,0.00048767,5]
[313096225,1706737860646,-682.34,0.00048767,5]
[313096226,1706737860658,-500.0,0.00048767,5]
[313096227,1706737860668,-4167.99,0.00048767,5]
[313096228,1706737860677,-570.1,0.00048767,5]
[313096229,1706737860687,-627.38,0.00048767,5]
[313096230,1706737860697,-500.0,0.0004877,30]
[313096231,1706737860707,-287.30811538,0.00048772,30]
[313096232,1706737860717,-309.18827163,0.00048776,30]
[313096233,1706737860727,-345.29943474,0.00048783,30]
[313096234,1706737860736,-222.22222222,0.00048792,30]
[313096235,1706737860745,-7483.79369124,0.000488,10]
[313096236,1706737860755,-1767.09337025,0.000488,120]
[313096237,1706737860764,-12738.22,0.000488,15]
[313096238,1706737860774,-152.18105865,0.00048821,2]
[313096239,1706737860785,-222.22222222,0.00048863,30]
[313096240,1706737860796,-539.29698083,0.00048867,30]
[313096241,1706737860807,-166.66666666,0.00048873,30]
[313096242,1706737860817,-773.98127364,0.00048886,30]
[313096243,1706737860827,-335.29,0.000489,7]
[313096244,1706737860837,-679.0,0.000489,30]
[313096245,1706737860847,-166.33333333,0.00048905,30]
[313096246,1706737860857,-222.22222222,0.00048908,30]
[313096247,1706737860867,-199.92,0.00048918,30]
[313096248,1706737860877,-539.29698083,0.00048926,30]
[313096249,1706737860887,-173.96726,0.00048958,30]
[313096250,1706737860896,-222.22222222,0.00048958,30]
[313096251,1706737860906,-345.29943474,0.00048969,30]
[313096252,1706737860917,-3246.0,0.0004899,2]
[313096253,1706737860928,-2199.0,0.0004899,2]
[313096254,1706737860938,-4329.18161395,0.00049,120]
[313096255,1706737860947,-379.48462676,0.00049,30]
[313096256,1706737861126,-323.0490179,0.00049,30]
[313096257,1706737861136,-255.37573132,0.00049,120]
[313096258,1706737861146,-300.0,0.00049,47]
[313096259,1706737861155,-656.39,0.00049,120]
[313096260,1706737861164,-50140.4608,0.00049,2]
[313096261,1706737861173,-571.3422599,0.00049,30]
[313096262,1706737861183,-967.01523279,0.00049,45]
[313096263,1706737861192,-10000.0,0.00049,45]
[313096264,1706737861202,-10000.0,0.00049,45]
[313096265,1706737861213,-11453.32842829,0.00049,45]
[313096266,1706737861222,-203.62473,0.00049,30]
[313096267,1706737861232,-2906.87649678,0.00049,45]
[313096268,1706737861241,-5695.00489823,0.00049,45]
[313096269,1706737861250,-8607.9216324,0.00049,45]
[313096270,1706737861259,-906.72953623,0.00049,45]
[313096271,1706737861269,-2512.07167807,0.00049,45]
[313096272,1706737861279,-7220.35654266,0.00049,2]
[313096273,1706737861288,-4242.0,0.00049,120]
[313096274,1706737861297,-640219.0,0.00049,10]
[313096275,1706737861307,-150.0,0.00049,20]
[313096276,1706737861316,-500.0,0.00049044,30]
[313096277,1706737861325,-222.22222222,0.0004905,30]
[313096278,1706737861334,-773.98127364,0.0004906,30]
[313096279,1706737861344,-604.0,0.0004906,7]
[313096280,1706737861354,-222.22222222,0.00049084,30]
[313096281,1706737861363,-287.30811538,0.0004909,30]
[313096282,1706737861373,-773.98127364,0.00049105,30]
[313096283,1706737861382,-309.18827163,0.00049111,30]
[313096284,1706737861391,-345.29943474,0.00049122,30]
[313096285,1706737861401,-150.36800341,0.00049139,30]
[313096286,1706737861411,-539.29698083,0.00049143,30]
[313096287,1706737861420,-151.67155283,0.00049146,30]
[313096288,1706737861430,-151.67155283,0.00049148,30]
[313096289,1706737861439,-150.72175454,0.00049175,22]
[313096290,1706737861449,-150.72175454,0.00049175,20]
[313096291,1706737861460,-150.72175454,0.00049175,18]
[313096292,1706737861470,-150.72175454,0.00049175,22]
[313096293,1706737861480,-150.72175454,0.00049175,20]
[313096294,1706737861490,-150.72175454,0.00049175,18]
[313096295,1706737861499,-150.72175454,0.00049175,20]
[313096296,1706737861508,-150.72175454,0.00049175,22]
[313096297,1706737861518,-150.72175454,0.00049175,21]
[313096298,1706737861527,-150.72175454,0.00049175,20]
[313096299,1706737861536,-150.72175454,0.00049175,21]
[313096300,1706737861545,-150.72175454,0.00049175,19]
[313096301,1706737861555,-150.72175454,0.00049175,22]
[313096302,1706737861564,-150.72175454,0.00049175,18]
[313096303,1706737861576,-150.72175454,0.00049175,18]
[313096304,1706737861586,-150.72175454,0.00049175,18]
[313096305,1706737861595,-150.72175454,0.00049175,20]
[313096306,1706737861607,-150.72175454,0.00049175,20]
[313096307,1706737861616,-150.72175454,0.00049175,20]
[313096308,1706737861625,-150.72175454,0.00049175,21]
[313096309,1706737861635,-150.72175454,0.00049175,21]
[313096310,1706737861645,-150.72175454,0.00049175,21]
[313096311,1706737861654,-150.72175454,0.00049175,19]
[313096312,1706737861664,-150.72175454,0.00049175,21]
[313096313,1706737861673,-150.72175454,0.00049175,19]
[313096314,1706737861682,-150.72175454,0.00049175,20]
[313096315,1706737861691,-150.72175454,0.00049175,20]
[313096316,1706737861700,-150.72175454,0.00049175,18]
[313096317,1706737861711,-773.98127364,0.00049216,30]
[313096318,1706737861721,-773.98127364,0.00049225,30]
[313096319,1706737861730,-222.22222222,0.00049246,30]
[313096320,1706737861741,-345.29943474,0.00049249,30]
[313096321,1706737861750,-222.22222222,0.00049258,30]
[313096322,1706737861759,-773.98127364,0.00049271,30]
[313096323,1706737861768,-287.30811538,0.00049276,30]
[313096324,1706737861778,-223.65,0.00049313,2]
[313096325,1706737861787,-200.0,0.00049315,5]
[313096326,1706737861797,-200.0,0.00049315,5]
[313096327,1706737861806,-200.0,0.00049315,5]
[313096328,1706737861815,-200.0,0.00049315,5]
[313096329,1706737861824,-200.0,0.00049315,5]
[313096330,1706737861833,-305.44872222,0.00049315,5]
[313096331,1706737861842,-1050.60445962,0.00049315,5]
[313096332,1706737861851,-600.0,0.00049315,120]
[313096333,1706737861860,-600.0,0.00049315,120]
[313096334,1706737861869,-600.0,0.00049315,120]
[313096335,1706737861878,-600.0,0.00049315,120]
[313096336,1706737861888,-600.0,0.00049315,120]
[313096337,1706737861897,-600.0,0.00049315,120]
[313096338,1706737861906,-600.0,0.00049315,120]
[313096339,1706737861915,-600.0,0.00049315,120]
[313096340,1706737861925,-600.0,0.00049315,120]
[313096341,1706737861934,-600.0,0.00049315,120]
[313096342,1706737861943,-600.0,0.00049315,120]
[313096343,1706737861952,-600.0,0.00049315,120]
[313096344,1706737861961,-439.94505031,0.00049315,120]
[313096345,1706737861971,-500.0,0.00049315,120]
[313096346,1706737861980,-509.52742173,0.00049315,120]
[313096347,1706737861990,-685.42,0.00049315,2]
[313096348,1706737861999,-275.37006909,0.00049315,120]
[313096349,1706737862008,-547.58,0.00049315,30]
[313096350,1706737862020,-356.21595767,0.00049315,30]
[313096351,1706737862029,-842.96,0.00049315,30]
[313096352,1706737862038,-500.0,0.00049315,5]
[313096353,1706737862048,-500.0,0.00049315,5]
[313096354,1706737862058,-500.0,0.00049315,5]
[313096355,1706737862067,-500.0,0.00049315,5]
[313096356,1706737862077,-500.0,0.00049315,5]
[313096357,1706737862086,-500.0,0.00049315,5]
[313096358,1706737862095,-500.0,0.00049315,5]
[313096359,1706737862105,-500.0,0.00049315,5]
[313096360,1706737862114,-500.0,0.00049315,5]
[313096361,1706737862123,-614.66767541,0.00049315,5]
[313096362,1706737862133,-794.97,0.00049315,30]
[313096363,1706737862143,-500.0,0.00049315,30]
[313096364,1706737862154,-500.0,0.00049315,5]
[313096365,1706737862164,-2136.82,0.00049315,30]
[313096366,1706737862175,-676.55,0.00049315,30]
[313096367,1706737862184,-569.16,0.00049315,30]
[313096368,1706737862194,-1100.98,0.00049315,30]
[313096369,1706737862204,-1246.27,0.00049315,30]
[313096370,1706737862215,-597.38,0.00049315,30]
[313096371,1706737862224,-811.79,0.00049315,30]
[313096372,1706737862234,-531.63,0.00049315,30]
[313096373,1706737862243,-682.34,0.00049315,30]
[313096374,1706737862252,-192.40897752,0.00049315,30]
[313096375,1706737862261,-4167.99,0.00049315,30]
[313096376,1706737862270,-570.1,0.00049315,30]
[313096377,1706737862279,-627.38,0.00049315,30]
[313096378,1706737862288,-1000.0,0.00049315,15]
[313096379,1706737862297,-1000.0,0.00049315,15]
[313096380,1706737862306,-1000.0,0.00049315,15]
[313096381,1706737862315,-1000.0,0.00049315,15]
[313096382,1706737862324,-1000.0,0.00049315,15]
[313096383,1706737862333,-1000.0,0.00049315,15]
[313096384,1706737862342,-355.0,0.00049315,15]
[313096385,1706737862351,-2400.0,0.00049315,30]
[313096386,1706737862360,-200.0,0.00049315,60]
[313096387,1706737862370,-500.0,0.00049317,30]
[313096388,1706737862380,-222.22222222,0.00049317,30]
[313096389,1706737862389,-150.101,0.0004936,2]
[313096390,1706737862398,-150.101,0.0004936,2]
[313096391,1706737862407,-150.101,0.0004936,2]
[313096392,1706737862416,-150.101,0.0004936,2]
[313096393,1706737862425,-150.101,0.0004936,2]
[313096394,1706737862434,-150.101,0.0004936,2]
[313096395,1706737862444,-150.101,0.0004936,2]
[313096396,1706737862455,-236.36897604,0.0004936,2]
[313096397,1706737862464,-539.29698083,0.00049422,30]
[313096398,1706737862473,-151.75508023,0.00049445,30]
[313096399,1706737862482,-539.29698083,0.00049485,30]
[313096400,1706737862491,-773.98127364,0.00049499,30]
[313096401,1706737862500,-300.0,0.000495,48]
[313096402,1706737862510,-3000.0,0.000495,47]
[313096403,1706737862519,-539.29698083,0.00049513,30]
[313096404,1706737862528,-199.92,0.00049514,30]
[313096405,1706737862537,-151.67155283,0.00049528,30]
[313096406,1706737862546,-150.72814059,0.00049534,30]
[313096407,1706737862556,-151.67155283,0.00049549,30]
[313096408,1706737862566,-2536.0,0.00049556,30]
[313096409,1706737862575,-558.0,0.00049556,30]
[313096410,1706737862584,-507.69377194,0.00049569,2]
[313096411,1706737862593,-287.30811538,0.00049572,30]
[313096412,1706737862604,-150.0,0.00049575,7]
[313096413,1706737862613,-150.0,0.00049575,7]
[313096414,1706737862623,-150.36800341,0.00049583,30]
[313096415,1706737862633,-309.18827163,0.00049586,30]
[313096416,1706737862644,-200.0,0.00049589,30]
[313096417,1706737862653,-800.0,0.00049589,30]
[313096418,1706737862662,-500.0,0.0004959,30]
[313096419,1706737862672,-309.18827163,0.00049592,30]
[313096420,1706737862682,-151.75508023,0.00049593,30]
[313096421,1706737862691,-151.67155283,0.00049601,30]
[313096422,1706737862699,-585.9496971,0.00049649,5]
[313096423,1706737862709,-309.18827163,0.00049652,30]
[313096424,1706737862718,-150.0,0.00049684,7]
[313096425,1706737862727,-309.18827163,0.00049686,30]
[313096426,1706737862737,-221.13755376,0.00049688,7]
[313096427,1706737862746,-150.0,0.00049698,7]
[313096428,1706737862755,-287.30811538,0.00049698,30]
[313096429,1706737862765,-150.0,0.00049699,7]
[313096430,1706737862774,-2618.55,0.000497,35]
[313096431,1706737862783,-539.29698083,0.00049703,30]
[313096432,1706737862793,-151.67155283,0.00049709,30]
[313096433,1706737862801,-150.0,0.00049711,7]
[313096434,1706737862810,-150.0,0.00049714,7]
[313096435,1706737862819,-150.0,0.00049716,7]
[313096436,1706737862829,-539.29698083,0.00049725,30]
[313096437,1706737862838,-287.30811538,0.00049727,30]
[313096438,1706737862847,-152.61839702,0.00049728,30]
[313096439,1706737862856,-150.0,0.00049731,7]
[313096440,1706737862865,-150.0,0.00049732,7]
[313096441,1706737862875,-150.0,0.00049748,2]
[313096442,1706737862884,-287.30811538,0.00049748,30]
[313096443,1706737862893,-2000.0,0.0004975,5]
[313096444,1706737862903,-3000.0,0.0004975,48]
[313096445,1706737862912,-150.0,0.00049757,7]
[313096446,1706737862921,-150.0,0.0004977,7]
[313096447,1706737862931,-199.92,0.00049774,30]
[313096448,1706737862940,-150.0,0.00049776,7]
[313096449,1706737862949,-150.0,0.00049778,7]
[313096450,1706737862959,-182.13,0.00049779,15]
[313096451,1706737862973,-182.13,0.00049779,15]
[313096452,1706737862986,-182.13,0.00049779,15]
[313096453,1706737863000,-150.0,0.0004978,7]
[313096454,1706737863013,-150.0,0.00049782,7]
[313096455,1706737863025,-222.22222222,0.00049799,30]
[313096456,1706737863036,-3312.22228875,0.000498,120]
[313096457,1706737863050,-205.0,0.00049801,43]
[313096458,1706737863062,-773.98127364,0.00049816,30]
[313096459,1706737863074,-150.0,0.0004982,7]
[313096460,1706737863087,-150.0,0.00049848,7]
[313096461,1706737863100,-150.0,0.00049856,7]
[313096462,1706737863112,-685.42,0.00049863,2]
[313096463,1706737863125,-547.58,0.00049863,30]
[313096464,1706737863137,-842.96,0.00049863,30]
[313096465,1706737863148,-794.97,0.00049863,30]
[313096466,1706737863159,-500.0,0.00049863,30]
[313096467,1706737863172,-500.0,0.00049863,5]
[313096468,1706737863184,-2136.82,0.00049863,30]
[313096469,1706737863196,-676.55,0.00049863,30]
[313096470,1706737863210,-569.16,0.00049863,30]
[313096471,1706737863223,-1100.98,0.00049863,30]
[313096472,1706737863235,-1246.27,0.00049863,30]
[313096473,1706737863248,-597.38,0.00049863,30]
[313096474,1706737863259,-811.79,0.00049863,30]
[313096475,1706737863269,-531.63,0.00049863,30]
[313096476,1706737863283,-682.34,0.00049863,30]
[313096477,1706737863296,-4167.99,0.00049863,30]
[313096478,1706737863308,-570.1,0.00049863,30]
[313096479,1706737863321,-627.38,0.00049863,30]
[313096480,1706737863332,-500.0,0.00049863,30]
[313096481,1706737863343,-150.0,0.00049869,7]
[313096482,1706737863354,-199.92,0.00049869,30]
[313096483,1706737863367,-773.98127364,0.00049869,30]
[313096484,1706737863378,-150.0,0.0004987,7]
[313096485,1706737863390,-166.99392,0.00049885,4]
[313096486,1706737863403,-287.30811538,0.00049887,30]
[313096487,1706737863415,-343.0,0.0004989,2]
[313096488,1706737863428,-335.29,0.000499,7]
[313096489,1706737863442,-782.37798202,0.000499,2]
[313096490,1706737863453,-163.84839436,0.000499,2]
[313096491,1706737863467,-1848.89264937,0.000499,2]
[313096492,1706737863476,-2687.3642571,0.000499,2]
[313096493,1706737863487,-150.0,0.00049912,7]
[313096494,1706737863498,-150.0,0.00049913,7]
[313096495,1706737863510,-150.0,0.00049927,7]
[313096496,1706737863521,-199.92,0.0004993,30]
[313096497,1706737863532,-199.92,0.00049937,30]
[313096498,1706737863544,-150.0,0.00049941,7]
[313096499,1706737863557,-150.0,0.00049943,7]
[313096500,1706737863570,-150.0,0.00049951,7]
[313096501,1706737863580,-773.98127364,0.00049952,30]
[313096502,1706737863590,-150.0,0.00049953,7]
[313096503,1706737863603,-150.0,0.00049959,7]
[313096504,1706737863614,-150.0,0.00049966,7]
[313096505,1706737863626,-287.30811538,0.00049966,30]
[313096506,1706737863637,-300.0,0.0004997,3]
[313096507,1706737863649,-308.31891423,0.0004997,3]
[313096508,1706737863661,-150.0,0.00049977,7]
[313096509,1706737863673,-837.34397763,0.0004998,5]
[313096510,1706737863684,-150.36800341,0.0004998,30]
[313096511,1706737863695,-150.0,0.00049984,7]
[313096512,1706737863707,-150.0,0.00049985,7]
[313096513,1706737863719,-210.77987715,0.00049986,2]
[313096514,1706737863730,-1972.59029307,0.00049989,2]
[313096515,1706737863742,-5591.0,0.0004999,2]
[313096516,1706737863752,-447.0,0.0004999,3]
[313096517,1706737863763,-3787.0,0.0004999,2]
[313096518,1706737863775,-305.0,0.0004999,3]
[313096519,1706737863786,-421.5597543,0.00049997,2]
[313096520,1706737863797,-46461.2587037,0.0005,30]
[313096521,1706737863808,-500.0,0.0005,6]
[313096522,1706737863819,-500.0,0.0005,6]
[313096523,1706737863830,-532.40373242,0.0005,4]
[313096524,1706737863841,-156.08505336,0.0005,4]
[313096525,1706737863852,-338.86010105,0.0005,4]
[313096526,1706737863864,-155.79388777,0.0005,4]
[313096527,1706737863875,-215.35411551,0.0005,4]
[313096528,1706737863885,-200.0,0.0005,2]
[313096529,1706737863896,-155.92739586,0.0005,2]
[313096530,1706737863907,-306.04551978,0.0005,2]
[313096531,1706737863917,-560.0,0.0005,4]
[313096532,1706737863928,-4500.0,0.0005,3]
[313096533,1706737863938,-1000.0,0.0005,7]
[313096534,1706737863949,-1904.02583779,0.0005,60]
[313096535,1706737863961,-7867.33049521,0.0005,4]
[313096536,1706737863972,-20787.72235623,0.0005,20]
[313096537,1706737863982,-183.34579332,0.0005,4]
[313096538,1706737863993,-171.07246687,0.0005,90]
[313096539,1706737864005,-359.96543519,0.0005,120]
[313096540,1706737864016,-2500.0,0.0005,120]
[313096541,1706737864027,-155.0,0.0005,120]
[313096542,1706737864037,-2804.64872091,0.0005,10]
[313096543,1706737864049,-2960.80357646,0.0005,4]
[313096544,1706737864059,-500.0,0.0005,120]
[313096545,1706737864070,-300.0,0.0005,49]
[313096546,1706737864081,-2110.0,0.0005,30]
[313096547,1706737864092,-237.70973731,0.0005,6]
[313096548,1706737864103,-246.10171127,0.0005,30]
[313096549,1706737864113,-188.42609604,0.0005,30]
[313096550,1706737864124,-6571.62842712,0.0005,30]
[313096551,1706737864134,-1372.0,0.0005,120]
[313096552,1706737864145,-187.19066531,0.0005,7]
[313096553,1706737864156,-20145.6927891,0.0005,15]
[313096554,1706737864167,-1000.0,0.0005,90]
[313096555,1706737864178,-1000.0,0.0005,90]
[313096556,1706737864189,-1000.0,0.0005,90]
[313096557,1706737864200,-1000.0,0.0005,90]
[313096558,1706737864212,-1048.84,0.0005,90]
[313096559,1706737864223,-1414.5756841,0.0005,120]
[313096560,1706737864233,-300.0,0.0005,30]
[313096561,1706737864244,-300.0,0.0005,30]
[313096562,1706737864255,-301.5834782,0.0005,30]
[313096563,1706737864266,-12709.07390448,0.0005,10]
[313096564,1706737864277,-68750.80610609,0.0005,30]
[313096565,1706737864287,-5000.0,0.0005,7]
[313096566,1706737864299,-5000.0,0.0005,7]
[313096567,1706737864309,-5019.15228283,0.0005,7]
[313096568,1706737864321,-23629.87323367,0.0005,120]
[313096569,1706737864332,-1000.0,0.0005,14]
[313096570,1706737864345,-2006.0,0.0005,120]
[313096571,1706737864357,-6000.0,0.0005,120]
[313096572,1706737864368,-186.4457153,0.0005,15]
[313096573,1706737864378,-423659.93919254,0.0005,15]
[313096574,1706737864389,-246.95899326,0.0005,20]
[313096575,1706737864400,-1555.0,0.0005,120]
[313096576,1706737864411,-2000.0,0.0005,2]
[313096577,1706737864421,-533.97598255,0.0005,30]
[313096578,1706737864432,-429032.12928917,0.0005,120]
[313096579,1706737864667,-5403.48247186,0.0005,120]
[313096580,1706737864680,-845.11992553,0.0005,120]
[313096581,1706737864695,-14138.51283004,0.0005,120]
[313096582,1706737864954,-500.0,0.00038356,5]
[313096583,1706737864966,-3746.76266741,0.00039469,14]
[313096584,1706737864994,-500.0,0.00038904,5]
[313096585,1706737865006,-6964.0540146,0.00039469,14]
[313096586,1706737865296,-500.0,0.0004,5]
[313096587,1706737865318,-500.0,0.00040547,5]
[313096588,1706737865328,-500.0,0.00041095,5]
[313096589,1706737865339,-500.0,0.00041643,5]
[313096590,1706737865349,-500.0,0.00042191,5]
[313096591,1706737865359,-500.0,0.00042739,5]
[313096592,1706737865370,-501.27521842,0.00043287,5]
[313096593,1706737865380,-84148.54217902,0.0005,120]
[313096594,1706737865392,-1284.12031197,0.0005,120]
[313096595,1706737865404,-1398.98497222,0.0005,120]
[313096596,1706737865415,-848.48,0.0005,120]
[313096597,1706737865585,-424.52831208,0.00022599,2]
[313096598,1706737865597,-1077.97414584,0.00022599,2]
[313096599,1706737865609,-360.68990709,0.00022599,2]
[313096600,1706737865619,-130.24128003,0.00037044,3]
[313096601,1706737865630,-553.84670996,0.00037044,3]
[313096602,1706737865643,-435.45685598,0.00037044,3]
[313096603,1706737865653,-608.63213236,0.00039452,5]
[313096604,1706737865663,-285.21213315,0.00044147,38]
[313096605,1706737865673,-233900.62802019,0.0005,120]
[313096606,1706737865682,-500.0,0.0005,30]
[313096607,1706737865692,-492.0,0.0005,30]
[313096608,1706737865702,-500.0,0.0005,30]
[313096609,1706737865713,-500.0,0.0005,30]
[313096610,1706737865722,-500.0,0.0005,30]
[313096611,1706737865732,-500.0,0.0005,30]
[313096612,1706737865742,-500.0,0.0005,30]
[313096613,1706737865752,-320.0,0.0005,120]
[313096614,1706737865763,-334.29279213,0.0005,7]
[313096615,1706737865772,-1007.62581143,0.0005,120]
[313096616,1706737865782,-1017.0,0.0005,60]
[313096617,1706737865791,-2000.0,0.0005,60]
[313096618,1706737865801,-10008.71848743,0.0005,2]
[313096619,1706737865811,-10600.13914992,0.0005,30]
[313096620,1706737865820,-14144.97911503,0.0005,30]
[313096621,1706737865840,-215.68669268,0.00022893,2]
[313096622,1706737865850,-3282.25773088,0.0005,30]
[313096623,1706737865863,-4655.96900554,0.0005,30]
[313096624,1706737865875,-8498.1624,0.0005,30]
[313096625,1706737865887,-319418.63174854,0.0005,30]
[313096626,1706737865897,-2526.86093132,0.0005,60]
[313096627,1706737865906,-2028.46991329,0.0005,7]
[313096628,1706737865915,-4072.0,0.0005,14]
[313096629,1706737865925,-23800.0,0.0005,7]
[313096630,1706737865934,-42721.9061334,0.0005,120]
[313096631,1706737872124,195881.7353,0.000225,2]
[313096632,1706737877251,8296.09729138,0.0002237,2]
[313096633,1706737897058,187.31729388,0.00022498,2]
[313096634,1706737919656,6712.99870322,0.0001,3]
[313096635,1706737932765,245000.0,0.000225,2]
[313096636,1706737939484,537.20957409,0.000244,120]
[313096637,1706737963520,1000.0,0.00022498,2]
[313096638,1706737984390,220.04320149,0.00022,2]
[313096639,1706737998699,100000.0,0.00022498,2]
[313096640,1706738019380,156.39,0.00020149,2]
[313096642,1706738031334,250.0,0.00022067,2]
[313096643,1706738080200,1218.4001,0.00022498,2]
[313096644,1706738113277,166.22,0.00022026,2]
[313096645,1706738146559,154.19383368,0.00022,2]
[313096646,1706738166076,2000.0,0.00022022,2]
[313096647,1706738338359,250.0,0.00021918,2]
[313096648,1706738387966,155.13,0.00022222,2]
[313096649,1706738388380,155.13,0.00022388,2]
[313096650,1706738486104,157.7,0.00020008,2]
[313096651,1706738492521,177.95142911,0.00022498,2]
[313096652,1706738553898,205.0,0.00022305,2]
[313096653,1706738571268,166.22,0.00021719,2]
[313096654,1706738587329,319.13872671,0.00022498,2]
[313096655,1706738703745,205.0,0.00022305,2]
[313096656,1706738733934,204.0,0.00022305,2]
[313096657,1706738750746,156.73,0.00022251,2]
[313096658,1706738820711,155.11,0.00022073,2]
[313096659,1706738820917,155.11,0.00022265,2]
[313096660,1706738821148,155.11,0.00022456,2]
[313096661,1706738839524,1000.0,0.0002169,2]
[313096668,1706738971100,235.43069741,0.00022,2]
[313096672,1706738974905,1000.0,0.000225,2]
[313096673,1706738993381,452.6259,0.000225,2]
[313096676,1706739003216,166.22,0.00021667,2]
[313096677,1706739011668,150.17,0.00019741,2]
[313096678,1706739011885,150.17,0.00022131,2]
[313096683,1706739032334,-413.22910588,0.00022516,2]
[313096684,1706739032344,-863.30848042,0.00022517,2]
[313096685,1706739032356,-450.0,0.00022517,2]
[313096686,1706739032368,-2194.55656055,0.00022517,2]
[313096687,1706739032397,-339.11920801,0.00022517,2]
[313096688,1706739032409,-864.12449426,0.00022517,2]
[313096689,1706739032419,-898.84550574,0.00022518,2]
[313096690,1706739032462,-496.20108709,0.00022518,2]
[313096691,1706739032533,-4537.25206683,0.00022518,2]
[313096692,1706739032542,-496.20108709,0.00022518,2]
[313096693,1706739032552,-177.95142905,0.00022519,2]
[313096694,1706739032561,-177.95142905,0.0002254,2]
[313096695,1706739032571,-612.0433,0.00022545,2]
[313096696,1706739032580,-177.95142905,0.00022561,2]
[313096697,1706739032589,-218.39209122,0.00022575,2]
[313096698,1706739032598,-177.95142905,0.00022583,2]
[313096699,1706739032608,-499.99,0.00022583,2]
[313096700,1706739032617,-218.34785309,0.00022588,2]
[313096701,1706739032628,-196.50754974,0.00022596,2]
[313096702,1706739032638,-164.34738147,0.00022596,2]
[313096703,1706739032647,-155.0,0.00022596,2]
[313096704,1706739032656,-242.79238309,0.00022597,2]